bitfinex/quotes_SOLUSD_20240702
["timestamp","ask_amount","ask_price","bid_price","bid_amount"]
[1719900984794,18.9345,148.71,148.68,23.56229449]
[1719900984803,18.9345,148.71,148.7,23.56229449]
[1719900988197,6.7251,148.7,148.68,23.56229449]
[1719900988397,18.9351,148.7,148.68,23.56229449]
[1719900988895,12.21,148.7,148.68,23.56229449]
[1719900989109,6.7246,148.71,148.7,23.56229449]
[1719900989322,18.9346,148.71,148.7,23.56229449]
[1719900995911,6.7246,148.71,148.7,23.56229449]
[1719900996086,18.9346,148.71,148.7,23.56229449]
[1719900997351,12.21,148.71,148.7,23.56229449]
[1719900997362,18.9344,148.71,148.7,23.56229449]
[1719900997813,15.8966,148.74,148.7,23.56229449]
[1719900999571,6.7243,148.72,148.7,23.56229449]
[1719900999590,6.7244,148.71,148.7,23.56229449]
[1719901000094,15.32462219,148.77,148.72,23.56229449]
[1719901000499,18.9329,148.75,148.72,23.56229449]
[1719901000991,18.9329,148.75,148.74,23.56229449]
[1719901001201,6.7229,148.75,148.74,23.56229449]
[1719901001404,8.30142308,148.77,148.74,23.56229449]
[1719901001405,6.7222,148.76,148.74,23.56229449]
[1719901002513,6.7226,148.75,148.74,23.56229449]
[1719901004561,6.7223,148.76,148.74,23.56229449]
[1719901004573,18.9323,148.76,148.74,23.56229449]
[1719901004579,6.7223,148.76,148.74,23.56229449]
[1719901004611,15.0459,148.79,148.74,23.56229449]
[1719901004797,6.7214,148.78,148.76,23.56229449]
[1719901005005,18.9314,148.78,148.76,23.56229449]
[1719901005217,18.9314,148.78,148.74,23.56229449]
[1719901005398,18.9314,148.78,148.76,23.56229449]
[1719901007219,6.7217,148.77,148.76,23.56229449]
[1719901008401,18.9317,148.77,148.76,23.56229449]
[1719901009014,18.9314,148.78,148.76,23.56229449]
[1719901010010,6.7217,148.77,148.76,23.56229449]
[1719901011347,18.9317,148.77,148.76,23.56229449]
[1719901011532,6.7217,148.77,148.76,23.56229449]
[1719901011542,18.9317,148.77,148.76,23.56229449]
[1719901011546,6.7217,148.77,148.76,23.56229449]
[1719901016425,18.9317,148.77,148.76,23.56229449]
[1719901025009,6.7234,148.74,148.71,23.56229449]
[1719901025326,12.21,148.73,148.71,23.56229449]
[1719901027219,12.21,148.74,148.73,23.56229449]
[1719901028931,18.9331,148.74,148.73,23.56229449]
[1719901030847,6.7239,148.73,148.71,23.56229449]
[1719901031032,12.21,148.74,148.73,23.56229449]
[1719901031033,18.9332,148.74,148.73,23.56229449]
[1719901031534,6.7237,148.73,148.71,23.56229449]
[1719901033047,18.9332,148.74,148.73,23.56229449]
[1719901034322,12.21,148.74,148.73,23.56229449]
[1719901034532,6.7227,148.75,148.73,23.56229449]
[1719901034840,18.9327,148.75,148.73,23.56229449]
[1719901035045,6.7227,148.75,148.73,23.56229449]
[1719901035250,18.9327,148.75,148.73,23.56229449]
[1719901039745,31.6615006,148.8,148.75,23.56229449]
[1719901039946,18.9316,148.78,148.75,23.56229449]
[1719901042328,6.7216,148.78,148.75,23.56229449]
[1719901043399,6.7216,148.78,148.77,23.56229449]
[1719901043943,14.56206753,148.8,148.77,23.56229449]
[1719901045621,6.7207,148.8,148.77,23.56229449]
[1719901045628,6.7207,148.8,148.79,23.56229449]
[1719901045646,6.72,148.81,148.79,23.56229449]
[1719901045846,6.7204,148.8,148.79,23.56229449]
[1719901052063,6.7213,148.78,148.77,23.56229449]
[1719901052067,6.721,148.79,148.77,23.56229449]
[1719901052552,6.7202,148.81,148.77,23.56229449]
[1719901052754,6.7204,148.8,148.79,23.56229449]
[1719901053961,18.9304,148.8,148.79,23.56229449]
[1719901058669,6.72,148.81,148.79,23.56229449]
[1719901058850,18.93,148.81,148.79,23.56229449]
[1719901063026,12.21,148.81,148.79,23.56229449]
[1719901063038,6.7204,148.8,148.79,23.56229449]
[1719901065279,18.9301,148.81,148.79,23.56229449]
[1719901065288,6.7201,148.81,148.79,23.56229449]
[1719901065291,12.21,148.81,148.79,23.56229449]
[1719901065351,18.93,148.81,148.79,23.56229449]
[1719901066079,6.72,148.81,148.79,23.56229449]
[1719901066405,18.93,148.81,148.79,23.56229449]
[1719901066555,6.7204,148.8,148.79,23.56229449]
[1719901069765,12.21,148.81,148.79,23.56229449]
[1719901069775,12.21,148.82,148.79,23.56229449]
[1719901070065,14.56056753,148.83,148.79,23.56229449]
[1719901070268,6.7196,148.82,148.79,23.56229449]
[1719901071926,18.9296,148.82,148.79,23.56229449]
[1719901071928,18.9296,148.82,148.81,23.56229449]
[1719901080487,14.56066753,148.83,148.81,23.56229449]
[1719901080679,6.7193,148.83,148.81,23.56229449]
[1719901082615,6.7195,148.82,148.81,23.56229449]
[1719901082880,18.9295,148.82,148.81,23.56229449]
[1719901084776,18.9295,148.82,148.79,23.56229449]
[1719901084777,36.85056753,148.82,148.79,23.56229449]
[1719901084847,6.7204,148.8,148.79,23.56229449]
[1719901084974,18.9304,148.8,148.79,23.56229449]
[1719901088289,6.7209,148.79,148.77,23.56229449]
[1719901088312,6.72,148.81,148.79,23.56229449]
[1719901088370,18.93,148.81,148.79,23.56229449]
[1719901090505,12.21,148.81,148.79,23.56229449]
[1719901090524,14.56096753,148.82,148.79,23.56229449]
[1719901090525,26.77096753,148.82,148.79,23.56229449]
[1719901090601,26.77096753,148.82,148.81,23.56229449]
[1719901092382,14.56096753,148.82,148.81,23.56229449]
[1719901095284,6.7191,148.83,148.81,23.56229449]
[1719901096622,6.7187,148.84,148.83,23.56229449]
[1719901097589,18.9287,148.84,148.83,23.56229449]
[1719901098807,6.7195,148.82,148.81,23.56229449]
[1719901100548,6.7191,148.83,148.81,23.56229449]
[1719901102822,12.21,148.84,148.81,23.56229449]
[1719901102827,7.84136753,148.86,148.83,23.56229449]
[1719901102836,12.21,148.85,148.83,23.56229449]
[1719901102998,7.84136753,148.86,148.83,23.56229449]
[1719901103201,18.9283,148.85,148.83,23.56229449]
[1719901103401,6.7183,148.85,148.83,23.56229449]
[1719901103689,26.76916753,148.86,148.85,23.56229449]
[1719901106486,6.7186,148.84,148.83,23.56229449]
[1719901107028,6.7191,148.83,148.81,23.56229449]
[1719901107690,18.9286,148.84,148.81,23.56229449]
[1719901109514,12.21,148.84,148.83,23.56229449]
[1719901109907,18.9283,148.85,148.83,23.56229449]
[1719901110215,12.21,148.85,148.83,23.56229449]
[1719901111614,14.55916753,148.86,148.85,23.56229449]
[1719901111815,7.84136753,148.86,148.85,23.56229449]
[1719901112113,20.05136753,148.86,148.85,23.56229449]
[1719901113620,26.76906753,148.86,148.83,23.56229449]
[1719901113637,26.76906753,148.86,148.85,23.56229449]
[1719901113700,14.55906753,148.86,148.85,23.56229449]
[1719901113915,26.76906753,148.86,148.85,23.56229449]
[1719901126834,14.55906753,148.86,148.85,23.56229449]
[1719901126846,26.76906753,148.86,148.85,23.56229449]
[1719901129097,20.05136753,148.86,148.81,23.56229449]
[1719901129111,7.84136753,148.85,148.81,23.56229449]
[1719901129328,12.21,148.82,148.81,23.56229449]
[1719901129712,18.9295,148.82,148.81,23.56229449]
[1719901135865,12.21,148.82,148.81,23.56229449]
[1719901135876,18.9291,148.83,148.81,23.56229449]
[1719901135880,6.7186,148.84,148.83,23.56229449]
[1719901135884,18.9286,148.84,148.83,23.56229449]
[1719901136635,6.7186,148.84,148.83,23.56229449]
[1719901136953,18.9286,148.84,148.83,23.56229449]
[1719901140351,7.84136753,148.85,148.83,23.56229449]
[1719901142316,14.55966753,148.85,148.83,23.56229449]
[1719901142327,7.84136753,148.89,148.85,23.56229449]
[1719901142334,12.21,148.87,148.83,23.56229449]
[1719901142350,6.7177,148.86,148.85,23.56229449]
[1719901142353,6.7174,148.87,148.85,23.56229449]
[1719901143146,6.7177,148.86,148.85,23.56229449]
[1719901143946,18.9277,148.86,148.85,23.56229449]
[1719901150849,6.7177,148.86,148.85,23.56229449]
[1719901151254,18.9277,148.86,148.85,23.56229449]
[1719901152820,6.7186,148.85,148.83,23.56229449]
[1719901152839,6.7189,148.84,148.81,23.56229449]
[1719901153063,12.21,148.83,148.81,23.56229449]
[1719901155032,6.7192,148.83,148.81,23.56229449]
[1719901155053,12.21,148.82,148.81,23.56229449]
[1719901155364,12.21,148.82,148.79,23.56229449]
[1719901155656,18.9304,148.8,148.79,23.56229449]
[1719901155860,18.9304,148.8,148.77,23.56229449]
[1719901156243,12.21,148.78,148.77,23.56229449]
[1719901156441,12.21,148.79,148.77,23.56229449]
[1719901156644,12.21,148.8,148.79,23.56229449]
[1719901157057,6.7196,148.82,148.79,23.56229449]
[1719901157260,12.21,148.81,148.79,23.56229449]
[1719901158573,18.93,148.81,148.79,23.56229449]
[1719901158587,12.21,148.81,148.79,23.56229449]
[1719901160766,18.9303,148.81,148.79,23.56229449]
[1719901161250,6.7204,148.8,148.79,23.56229449]
[1719901162249,18.9304,148.8,148.79,23.56229449]
[1719901165260,6.7204,148.8,148.79,23.56229449]
[1719901167010,18.9304,148.8,148.79,23.56229449]
[1719901168576,6.7204,148.8,148.79,23.56229449]
[1719901168750,18.9304,148.8,148.79,23.56229449]
[1719901176075,6.7204,148.8,148.79,23.56229449]
[1719901176257,18.9304,148.8,148.79,23.56229449]
[1719901178459,14.86145071,148.84,148.81,23.56229449]
[1719901178469,14.56036753,148.84,148.83,23.56229449]
[1719901178676,26.77036753,148.84,148.83,23.56229449]
[1719901182580,14.56036753,148.84,148.83,23.56229449]
[1719901182780,26.77036753,148.84,148.83,23.56229449]
[1719901183377,14.56036753,148.84,148.83,23.56229449]
[1719901183682,18.929,148.84,148.83,23.56229449]
[1719901185063,6.719,148.84,148.83,23.56229449]
[1719901185077,18.929,148.84,148.83,23.56229449]
[1719901187789,6.719,148.84,148.83,23.56229449]
[1719901187965,18.929,148.84,148.83,23.56229449]
[1719901188380,6.719,148.84,148.83,23.56229449]
[1719901189084,18.929,148.84,148.83,23.56229449]
[1719901200797,6.719,148.84,148.83,23.56229449]
[1719901201096,6.7181,148.85,148.83,23.56229449]
[1719901202278,6.7186,148.84,148.83,23.56229449]
[1719901207392,6.7183,148.85,148.83,23.56229449]
[1719901211133,6.7186,148.84,148.83,23.56229449]
[1719901213412,6.7195,148.82,148.81,23.56229449]
[1719901213609,18.9295,148.82,148.81,23.56229449]
[1719901215119,6.7195,148.82,148.81,23.56229449]
[1719901216699,6.7191,148.83,148.81,23.56229449]
[1719901217921,6.7195,148.82,148.81,23.56229449]
[1719901219633,18.9291,148.83,148.81,23.56229449]
[1719901220615,6.7195,148.82,148.81,23.56229449]
[1719901224177,18.9295,148.82,148.81,23.56229449]
[1719901233481,6.7192,148.83,148.81,23.56229449]
[1719901233492,12.21,148.82,148.81,23.56229449]
[1719901233516,6.7192,148.83,148.81,23.56229449]
[1719901235718,6.7187,148.84,148.83,23.56229449]
[1719901249970,7.84136753,148.87,148.83,23.56229449]
[1719901250330,6.7177,148.86,148.85,23.56229449]
[1719901250345,18.9277,148.86,148.85,23.56229449]
[1719901255762,6.7185,148.85,148.83,23.56229449]
[1719901256897,18.9286,148.84,148.83,23.56229449]
[1719901256917,18.9286,148.84,148.77,6.401]
[1719901256918,12.21,148.84,148.81,23.56229449]
[1719901256931,6.7195,148.82,148.81,23.56229449]
[1719901257243,18.9295,148.82,148.81,23.56229449]
[1719901259209,12.21,148.82,148.81,23.56229449]
[1719901259644,12.21,148.83,148.81,23.56229449]
[1719901260533,6.7187,148.84,148.81,23.56229449]
[1719901260839,12.21,148.83,148.81,23.56229449]
[1719901261426,6.7182,148.85,148.84,23.56229449]
[1719901261631,12.21,148.85,148.84,23.56229449]
[1719901262863,18.9281,148.85,148.84,23.56229449]
[1719901263329,12.21,148.85,148.84,23.56229449]
[1719901265527,18.9281,148.85,148.84,23.56229449]
[1719901265555,6.719,148.83,148.82,23.56229449]
[1719901265736,18.929,148.83,148.82,23.56229449]
[1719901271137,6.719,148.83,148.82,23.56229449]
[1719901271142,18.929,148.83,148.82,23.56229449]
[1719901273549,6.719,148.83,148.82,23.56229449]
[1719901273760,18.929,148.83,148.82,23.56229449]
[1719901279940,57.21,148.83,148.79,23.56229449]
[1719901280260,12.21,148.84,148.81,23.56229449]
[1719901280625,6.7185,148.85,148.81,23.56229449]
[1719901281737,12.21,148.83,148.81,23.56229449]
[1719901281832,7.01555437,148.88,148.81,23.56229449]
[1719901281848,28.98442492,148.91,148.81,35.77229449]
[1719901281849,12.21,148.86,148.81,35.77229449]
[1719901281859,12.21,148.86,148.83,23.56229449]
[1719901284039,12.21,148.85,148.83,23.56229449]
[1719901284048,48.84,148.89,148.81,23.56229449]
[1719901284052,12.21,148.84,148.81,23.56229449]
[1719901284062,12.21,148.85,148.81,23.56229449]
[1719901284555,12.21,148.83,148.81,23.56229449]
[1719901285145,18.9298,148.82,148.77,23.56229449]
[1719901285350,12.21,148.8,148.77,23.56229449]
[1719901285556,12.21,148.79,148.77,23.56229449]
[1719901290569,6.7199,148.82,148.77,23.56229449]
[1719901290771,18.9299,148.82,148.77,23.56229449]
[1719901290970,12.21,148.81,148.77,23.56229449]
[1719901291273,18.93,148.81,148.77,23.56229449]
[1719901291475,6.7213,148.78,148.77,23.56229449]
[1719901291658,6.7226,148.75,148.74,23.56229449]
[1719901292075,12.21,148.76,148.72,39.36509449]
[1719901292817,12.21,148.75,148.72,39.36509449]
[1719901293142,12.21,148.75,148.72,23.56229449]
[1719901293153,18.9329,148.75,148.72,23.56229449]
[1719901293162,6.0195,148.76,148.7,23.56229449]
[1719901293266,18.9348,148.71,148.67,23.56229449]
[1719901295250,12.21,148.69,148.67,23.56229449]
[1719901295251,110.6467,148.75,148.7,35.77229449]
[1719901295252,6.7229,148.75,148.7,35.77229449]
[1719901295258,18.9329,148.75,148.7,35.77229449]
[1719901295261,18.9329,148.75,148.73,23.56229449]
[1719901295275,6.7229,148.75,148.73,23.56229449]
[1719901295777,6.7221,148.77,148.76,23.56229449]
[1719901295978,18.9321,148.77,148.73,23.56229449]
[1719901296480,18.9321,148.77,148.75,23.56229449]
[1719901297267,6.7214,148.78,148.75,23.56229449]
[1719901297656,12.21,148.77,148.75,23.56229449]
[1719901298597,18.9319,148.77,148.75,23.56229449]
[1719901298633,6.7219,148.77,148.75,23.56229449]
[1719901298791,6.7222,148.76,148.75,23.56229449]
[1719901301298,6.7217,148.78,148.75,23.56229449]
[1719901301887,6.7217,148.78,148.77,23.56229449]
[1719901303178,18.9308,148.79,148.77,23.56229449]
[1719901303982,21.04865406,148.84,148.8,23.56229449]
[1719901304384,6.1971,148.87,148.78,12.21]
[1719901304385,6.719,148.83,148.82,23.56229449]
[1719901304414,6.719,148.83,148.8,23.56229449]
[1719901304424,6.7187,148.84,148.82,23.56229449]
[1719901306614,6.7182,148.85,148.82,23.56229449]
[1719901306616,6.7178,148.86,148.82,23.56229449]
[1719901306624,18.9278,148.86,148.82,23.56229449]
[1719901306629,18.9278,148.86,148.84,23.56229449]
[1719901307098,8.77592308,148.9,148.84,23.56229449]
[1719901307277,12.21,148.86,148.84,23.56229449]
[1719901309276,6.718,148.86,148.84,23.56229449]
[1719901310180,6.7181,148.85,148.84,23.56229449]
[1719901312043,18.9281,148.85,148.84,23.56229449]
[1719901314208,57.21,148.85,148.79,23.56229449]
[1719901314380,12.21,148.8,148.79,23.56229449]
[1719901318017,18.9301,148.81,148.79,23.56229449]
[1719901318025,6.7201,148.81,148.79,23.56229449]
[1719901318030,18.9301,148.81,148.79,23.56229449]
[1719901319733,12.21,148.81,148.79,23.56229449]
[1719901319916,18.9301,148.81,148.79,23.56229449]
[1719901322259,6.7201,148.81,148.79,23.56229449]
[1719901328745,6.7204,148.8,148.79,23.56229449]
[1719901330851,6.7198,148.82,148.79,23.56229449]
[1719901330859,6.7198,148.82,148.81,23.56229449]
[1719901335635,8.77592308,148.85,148.81,23.56229449]
[1719901335636,6.719,148.83,148.81,23.56229449]
[1719901335998,6.719,148.83,148.81,24.33927493]
[1719901337840,6.719,148.83,148.81,23.56229449]
[1719901341520,6.7187,148.84,148.81,23.56229449]
[1719901343214,6.7187,148.84,148.83,23.56229449]
[1719901347159,6.7181,148.85,148.83,23.56229449]
[1719901347409,6.7186,148.84,148.83,23.56229449]
[1719901349824,6.7183,148.85,148.83,23.56229449]
[1719901350220,6.7186,148.84,148.83,23.56229449]
[1719901350420,41.44022308,148.89,148.83,23.56229449]
[1719901350610,24.64842308,148.89,148.85,23.56229449]
[1719901350811,12.21,148.88,148.85,23.56229449]
[1719901351234,6.7175,148.87,148.85,23.56229449]
[1719901354134,6.7173,148.87,148.85,23.56229449]
[1719901357029,8.77592308,148.89,148.85,23.56229449]
[1719901357331,8.77592308,148.89,148.86,23.56229449]
[1719901357332,12.21,148.89,148.86,23.56229449]
[1719901357841,6.7172,148.87,148.86,23.56229449]
[1719901361704,6.7169,148.88,148.86,23.56229449]
[1719901361713,6.7172,148.87,148.86,23.56229449]
[1719901368641,6.7172,148.87,148.84,12.21]
[1719901369729,12.21,148.88,148.81,13.2696]
[1719901369933,6.718,148.86,148.82,12.21]
[1719901370253,6.7185,148.85,148.82,12.21]
[1719901370453,182.2166893,148.85,148.82,12.21]
[1719901371601,6.7185,148.85,148.82,12.21]
[1719901371846,6.7178,148.86,148.82,12.21]
[1719901372060,6.7178,148.86,148.81,13.2699]
[1719901372234,6.7178,148.86,148.82,12.21]
[1719901373840,6.7178,148.86,148.81,18.9298]
[1719901374846,6.7178,148.86,148.82,6.7194]
[1719901375044,6.7178,148.86,148.81,6.7198]
[1719901375248,18.9278,148.86,148.81,18.9298]
[1719901375848,6.7182,148.85,148.81,18.9298]
[1719901377276,6.7182,148.85,148.81,6.7198]
[1719901377760,6.7182,148.85,148.81,18.9298]
[1719901378248,18.9278,148.86,148.81,6.7198]
[1719901380004,12.21,148.85,148.81,6.7198]
[1719901380033,23.3563,148.9,148.82,12.21]
[1719901380034,6.7172,148.88,148.82,12.21]
[1719901380036,18.9272,148.88,148.84,6.7186]
[1719901380085,6.7173,148.87,148.83,6.7189]
[1719901380440,18.9273,148.87,148.83,6.7189]
[1719901381697,6.7177,148.86,148.82,18.9294]
[1719901382245,12.21,148.87,148.81,6.7199]
[1719901382445,6.7178,148.86,148.82,18.9294]
[1719901382668,6.7173,148.87,148.83,6.7189]
[1719901382864,18.9273,148.87,148.83,6.7189]
[1719901383045,6.7178,148.86,148.82,18.9293]
[1719901384445,18.9273,148.87,148.82,18.9293]
[1719901386597,6.7173,148.87,148.83,6.719]
[1719901386599,18.9273,148.87,148.83,6.719]
[1719901386603,6.7173,148.87,148.83,6.719]
[1719901386605,6.7173,148.87,148.82,18.9294]
[1719901386610,100.0,149.03,148.86,25.0]
[1719901386773,12.21,148.88,148.86,25.0]
[1719901387159,12.21,148.88,148.82,12.21]
[1719901387665,6.7172,148.87,148.82,12.21]
[1719901388466,6.7172,148.87,148.82,35.7276]
[1719901390550,87.17692423,148.86,148.82,35.7276]
[1719901390561,6.7172,148.87,148.82,35.7276]
[1719901390572,6.7172,148.87,148.83,12.21]
[1719901392733,6.7177,148.86,148.83,12.21]
[1719901395378,6.7177,148.86,148.82,35.7276]
[1719901397096,111.37887037,148.85,148.82,35.7276]
[1719901397106,6.7177,148.86,148.82,35.7276]
[1719901397121,106.02862815,148.84,148.82,35.7276]
[1719901397129,6.7177,148.86,148.82,35.7276]
[1719901397135,6.7177,148.86,148.78,56.65559276]
[1719901397260,6.7177,148.86,148.82,12.21]
[1719901399401,136.02300578,148.85,148.83,18.5677]
[1719901399408,6.7164,148.89,148.85,12.21]
[1719901399413,18.9258,148.91,148.85,12.21]
[1719901399419,6.716,148.9,148.86,7.4593782]
[1719901399430,110.98576438,148.89,148.86,0.7416782]
[1719901399432,110.98576438,148.89,148.85,0.0003]
[1719901399433,6.716,148.9,148.85,12.2103]
[1719901399582,6.716,148.9,148.87,12.21]
[1719901399583,96.16941403,148.9,148.87,12.21]
[1719901399783,6.7154,148.91,148.87,12.21]
[1719901400451,104.49085743,148.9,148.85,0.0003]
[1719901400665,104.49085743,148.9,148.87,12.21]
[1719901400873,16.5598,148.92,148.87,12.21]
[1719901401171,35.4849,148.92,148.87,18.9271]
[1719901401682,6.7155,148.91,148.87,18.9271]
[1719901403044,6.715,148.92,148.87,18.9271]
[1719901403059,6.715,148.92,148.88,6.7166]
[1719901403074,18.9247,148.93,148.88,18.9266]
[1719901403163,6.7147,148.93,148.89,6.7161]
[1719901403366,18.9241,148.94,148.89,18.9261]
[1719901405210,118.24951897,148.93,148.89,18.9261]
[1719901405225,130.45951897,148.93,148.89,6.7161]
[1719901405227,129.9618273,148.92,148.89,6.7161]
[1719901405231,18.9245,148.93,148.89,6.7161]
[1719901405243,6.715,148.92,148.88,23.508]
[1719901405249,6.715,148.92,148.88,35.718]
[1719901405391,120.63712052,148.91,148.88,35.718]
[1719901405597,12.21,148.93,148.88,35.718]
[1719901405598,18.9245,148.93,148.88,35.718]
[1719901405760,121.17382243,148.91,148.88,35.718]
[1719901405961,6.7151,148.92,148.88,35.718]
[1719901406374,114.22320601,148.91,148.88,35.718]
[1719901406681,18.9246,148.93,148.88,35.718]
[1719901406878,6.715,148.92,148.88,35.718]
[1719901407068,6.715,148.92,148.88,29.0014]
[1719901407267,6.715,148.92,148.88,35.7181]
[1719901408164,120.76389487,148.92,148.88,35.7181]
[1719901408685,18.9247,148.93,148.88,35.7181]
[1719901408720,18.926,148.9,148.86,6.7176]
[1719901408732,12.21,148.9,148.83,20.21]
[1719901408981,243.96352137,148.89,148.85,12.21]
[1719901410915,12.21,148.9,148.85,12.21]
[1719901410920,12.21,148.9,148.82,20.21]
[1719901410923,12.21,148.9,148.85,12.21]
[1719901410934,18.9255,148.91,148.85,12.21]
[1719901410943,18.9255,148.91,148.87,6.7172]
[1719901411066,12.21,148.9,148.87,6.7172]
[1719901413189,12.21,148.91,148.88,6.7164]
[1719901414536,12.21,148.91,148.87,23.5098]
[1719901414564,0.7416782,148.94,148.87,23.5098]
[1719901414565,7.4558782,148.94,148.87,16.7927]
[1719901414576,12.21,148.92,148.89,6.716]
[1719901414584,12.21,148.92,148.89,16.7906]
[1719901414591,18.925,148.92,148.89,16.7906]
[1719901414769,15.2767,148.95,148.89,16.7906]
[1719901416748,12.21,148.92,148.89,23.5068]
[1719901416750,12.21,148.92,148.88,6.7167]
[1719901416755,12.21,148.92,148.87,6.7168]
[1719901416756,6.715,148.92,148.87,6.7168]
[1719901416759,6.715,148.92,148.86,16.7934]
[1719901416760,12.21,148.91,148.88,6.7163]
[1719901416774,18.9254,148.91,148.87,6.7171]
[1719901416779,12.21,148.91,148.87,6.7171]
[1719901416783,18.9255,148.91,148.86,16.7934]
[1719901416788,18.9255,148.91,148.86,29.0034]
[1719901417481,0.7416782,148.94,148.89,6.7159]
[1719901417680,6.7142,148.94,148.89,6.7159]
[1719901417878,12.21,148.92,148.89,6.7159]
[1719901418773,22.7324782,148.95,148.89,6.7159]
[1719901419098,12.21,148.94,148.91,6.7154]
[1719901420110,12.21,148.94,148.9,6.7157]
[1719901420123,12.21,148.95,148.93,6.7145]
[1719901420383,12.21,148.95,148.92,6.7149]
[1719901420584,12.21,148.96,148.92,6.7149]
[1719901422348,6.7123,148.98,148.93,6.7142]
[1719901422349,12.21,148.97,148.93,6.7142]
[1719901422483,18.9227,148.97,148.93,6.7142]
[1719901423575,6.7127,148.97,148.93,6.7142]
[1719901423770,18.9227,148.97,148.93,6.7142]
[1719901423971,18.9227,148.97,148.92,35.7116]
[1719901424171,18.9227,148.97,148.92,23.5016]
[1719901424471,6.7127,148.97,148.92,35.7116]
[1719901424972,18.9227,148.97,148.92,23.5016]
[1719901425287,6.7132,148.96,148.92,16.7868]
[1719901425470,18.9232,148.96,148.92,23.5017]
[1719901425820,12.21,148.97,148.92,35.7117]
[1719901426838,18.9229,148.97,148.92,35.7117]
[1719901426846,18.9229,148.97,148.92,23.5017]
[1719901426849,6.7129,148.97,148.92,35.7115]
[1719901427091,18.9229,148.97,148.92,35.7115]
[1719901428997,6.7129,148.97,148.92,35.7115]
[1719901429003,35.0218782,148.96,148.82,20.21]
[1719901429005,6.7156,148.91,148.86,16.7941]
[1719901429007,6.7164,148.89,148.84,6.7184]
[1719901429020,6.7168,148.88,148.84,6.7184]
[1719901429082,0.7416782,148.92,148.84,6.7184]
[1719901429083,6.7163,148.9,148.84,6.7184]
[1719901429283,6.7154,148.91,148.86,6.7176]
[1719901429498,12.21,148.9,148.86,6.7176]
[1719901429678,18.9259,148.9,148.85,35.7228]
[1719901429990,18.9264,148.89,148.85,23.5128]
[1719901430483,12.21,148.89,148.85,23.5128]
[1719901430688,12.21,148.89,148.86,6.7176]
[1719901431080,12.21,148.89,148.85,16.7947]
[1719901431391,12.21,148.89,148.85,23.5127]
[1719901435763,6.7167,148.89,148.85,16.7947]
[1719901435766,6.716,148.9,148.85,16.7947]
[1719901435770,12.21,148.89,148.85,16.7947]
[1719901435774,18.9265,148.89,148.85,16.7947]
[1719901436072,12.21,148.88,148.85,23.5124]
[1719901436385,12.21,148.89,148.85,23.5124]
[1719901437181,12.21,148.89,148.86,6.7176]
[1719901439303,12.21,148.89,148.85,23.5127]
[1719901441513,0.7416782,148.93,148.87,16.7927]
[1719901441514,12.21,148.88,148.85,6.718]
[1719901442871,6.7159,148.9,148.85,6.718]
[1719901443194,12.21,148.88,148.85,6.718]
[1719901443588,6.7159,148.9,148.86,6.7175]
[1719901443793,12.21,148.89,148.86,6.7175]
[1719901445434,12.21,148.89,148.85,6.718]
[1719901448034,12.21,148.89,148.86,6.7176]
[1719901448061,12.21,148.89,148.85,6.718]
[1719901448193,12.21,148.89,148.86,6.7177]
[1719901449323,12.21,148.89,148.85,6.718]
[1719901450726,6.7157,148.91,148.84,37.0057]
[1719901450902,18.926,148.9,148.86,6.7175]
[1719901451091,12.21,148.89,148.86,6.7175]
[1719901454917,12.21,148.89,148.84,16.7957]
[1719901454928,15.6287,148.91,148.84,49.2157]
[1719901454933,22.3442,148.91,148.86,6.7174]
[1719901454935,12.21,148.9,148.86,6.7174]
[1719901455417,18.926,148.9,148.86,6.7174]
[1719901455587,18.926,148.9,148.85,6.718]
[1719901456824,18.926,148.9,148.86,6.7175]
[1719901457190,12.21,148.9,148.86,6.7175]